fUSD/lending_fUSD_20260109
["ID","MTS","AMOUNT","RATE_DAILY","PERIOD"]
[401130688,1767951044527,-310.79861045,0.00014194,2]
[401130689,1767951044538,-569.06117001,0.00014194,2]
[401130690,1767951044548,-541.90514706,0.00014194,2]
[401130691,1767951044559,-408.18340495,0.00014194,2]
[401130692,1767951044573,-2856.6204109,0.00014194,2]
[401130693,1767951044584,-10906.82952769,0.00014194,2]
[401130694,1767951044594,-500.0,0.00014194,2]
[401130695,1767951044604,-740.39071647,0.00014194,2]
[401130696,1767951044614,-306.23900044,0.00014194,2]
[401130725,1767951046017,-14653.26724922,0.00014194,2]
[401130731,1767951049526,150.1,0.00011078,2]
[401130732,1767951059518,150.1,0.00011078,2]
[401130733,1767951069510,63.146,0.00011078,2]
[401130738,1767951450876,3000.0,0.000202,30]
[401130784,1767952231828,-300.0,0.00011858,2]
[401130785,1767952231839,-441.28813732,0.00012368,2]
[401130786,1767952231850,-300.0,0.00012435,2]
[401130787,1767952231859,-74.21186268,0.00012435,2]
[401130788,1767952231871,-225.78813732,0.00012435,2]
[401130789,1767952231880,-300.0,0.00012435,2]
[401130790,1767952231889,-24.11630686,0.00012684,2]
[401130791,1767952232039,-1175.88369314,0.00012684,2]
[401130792,1767952232049,-1200.0,0.00012684,2]
[401130793,1767952232059,-300.0,0.00012684,2]
[401130794,1767952232068,-253.41395061,0.00012685,2]
[401130795,1767952232078,-300.0,0.00012685,2]
[401130796,1767952232087,-195.0,0.00012685,2]
[401130797,1767952232097,-300.0,0.00012685,2]
[401130798,1767952232106,-250.0,0.00012685,2]
[401130799,1767952232116,-300.0,0.00012685,2]
[401130800,1767952232126,-195.0,0.00012685,2]
[401130801,1767952232136,-250.0,0.00012685,2]
[401130802,1767952232145,-278.05,0.00013,2]
[401130803,1767952232159,-269.01,0.00013192,2]
[401130804,1767952232169,-150.0,0.00013538,2]
[401130805,1767952232178,-1415.71868484,0.00013561,2]
[401130806,1767952232190,-1824.28131516,0.00013561,2]
[401130807,1767952232201,-2540.4,0.00013699,2]
[401130808,1767952232211,-166.66,0.00013828,2]
[401130809,1767952232221,-420.0,0.00013915,2]
[401130810,1767952232233,-269.01,0.00013925,2]
[401130811,1767952232243,-1680.0,0.00013953,2]
[401130812,1767952232252,-153.55065544,0.00013994,2]
[401130813,1767952232262,-247.21882098,0.00013994,2]
[401130814,1767952232271,-1000.0,0.00014051,2]
[401130815,1767952232281,-150.0,0.00014084,2]
[401130816,1767952232290,-56099.6642378,0.00014085,2]
[401130817,1767952237934,-210.94272354,0.00013994,2]
[401130818,1767952237944,-1560.17223085,0.00014085,2]
[401130819,1767952237954,-10330.8584515,0.00014085,2]
[401130820,1767952238092,-1036.33007245,0.00014085,2]
[401130826,1767952240077,-543.6511395,0.00014085,2]
[401130827,1767952240287,-7916.37009399,0.00014085,2]
[401130828,1767952240298,-523.34287504,0.00014085,2]
[401130829,1767952240309,-2993.80498,0.00014085,2]
[401130830,1767952240321,-1063.38941891,0.00014085,2]
[401130838,1767952243528,-1099.0,0.00014085,2]
[401130839,1767952243582,-4521.05176533,0.00014085,2]
[401130846,1767952306854,460.0,0.000226,120]
[401130851,1767952433435,-165.338,0.00013804,2]
[401130852,1767952433461,-1884.14,0.00013804,2]
[401130853,1767952433487,-1000.0,0.00013985,2]
[401130854,1767952433512,-11052.6096,0.00013985,2]
[401130855,1767952433538,-1014.66364068,0.0001399,2]
[401130856,1767952433563,-151.0,0.00014077,2]
[401130857,1767952433590,-151.0,0.00014077,2]
[401130858,1767952433614,-151.0,0.00014077,2]
[401130859,1767952433639,-151.0,0.00014077,2]
[401130860,1767952433664,-151.0,0.00014077,2]
[401130861,1767952433687,-151.0,0.00014077,2]
[401130862,1767952433713,-151.0,0.00014077,2]
[401130863,1767952433736,-151.0,0.00014077,2]
[401130864,1767952433760,-151.0,0.00014077,2]
[401130865,1767952433784,-151.0,0.00014077,2]
[401130866,1767952433809,-151.0,0.00014077,2]
[401130867,1767952433833,-151.0,0.00014077,2]
[401130868,1767952433858,-151.0,0.00014077,2]
[401130869,1767952433882,-151.0,0.00014077,2]
[401130870,1767952433905,-160.89416707,0.00014077,2]
[401130871,1767952433931,-151.0,0.00014077,2]
[401130872,1767952433955,-151.0,0.00014077,2]
[401130873,1767952433980,-151.0,0.00014077,2]
[401130874,1767952434005,-151.0,0.00014077,2]
[401130875,1767952434031,-151.0,0.00014077,2]
[401130876,1767952434055,-151.0,0.00014077,2]
[401130877,1767952434081,-151.0,0.00014077,2]
[401130878,1767952434106,-151.0,0.00014077,2]
[401130879,1767952434133,-151.0,0.00014077,2]
[401130880,1767952434156,-151.0,0.00014077,2]
[401130881,1767952434180,-151.0,0.00014077,2]
[401130882,1767952434208,-151.0,0.00014077,2]
[401130883,1767952434232,-150.0,0.00014084,2]
[401130884,1767952434258,-235.4226894,0.00014084,2]
[401130885,1767952434286,-70810.93190285,0.00014085,2]
[401130886,1767952447993,19688.265564,7.945e-05,2]
[401131006,1767953432743,-257.63,0.00013177,2]
[401131008,1767953432752,-200.0,0.00013267,2]
[401131010,1767953432761,-250.0,0.00013289,2]
[401131012,1767953432771,-1852.42,0.00013311,2]
[401131014,1767953432780,-300.0,0.00013325,2]
[401131016,1767953432789,-1200.0,0.00013325,2]
[401131018,1767953432799,-8043.8164828,0.00013326,2]
[401131074,1767953438493,-1800.0,0.00013326,2]
[401131079,1767953438540,-999.0,0.00013326,2]
[401131134,1767953444561,-5737.6435172,0.00013326,2]
[401131135,1767953444571,-168.81720817,0.00013332,2]
[401131136,1767953444580,-500.0,0.00013431,2]
[401131137,1767953444589,-500.0,0.00013431,2]
[401131138,1767953444599,-500.0,0.00013431,2]
[401131139,1767953444608,-500.0,0.00013431,2]
[401131140,1767953444617,-500.0,0.00013431,2]
[401131141,1767953444626,-200.0,0.00013431,2]
[401131142,1767953444636,-150.0,0.00013431,2]
[401131143,1767953444645,-4552.34,0.00013435,2]
[401131144,1767953444655,-166.66,0.00013456,2]
[401131145,1767953444664,-187.53,0.00013699,2]
[401131146,1767953444673,-166.66,0.00013739,2]
[401131147,1767953444683,-2500.0,0.00013885,2]
[401131148,1767953444692,-500.0,0.00013985,2]
[401131149,1767953444701,-1000.0,0.00013985,2]
[401131150,1767953444711,-736.6609311,0.00013985,2]
[401131151,1767953444748,-193.37954235,0.00013985,2]
[401131168,1767953446075,-243.63302655,0.00013985,2]
[401131169,1767953446086,-4337.96697345,0.00013985,2]
[401131194,1767953446420,-6414.2,0.00013985,2]
[401131195,1767953446436,-888.80181706,0.00013985,2]
[401131257,1767954041631,1043.1546539,0.00019376,30]
[401131258,1767954267681,1000.0,0.000152,10]
[401131265,1767954401114,-187.53580993,0.00012906,2]
[401131267,1767954511907,-312.46419007,0.00012906,2]
[401131268,1767954511934,-5507.54,0.00012934,2]
[401131269,1767954511958,-195.0,0.00012939,2]
[401131270,1767954511981,-484.99580993,0.00012972,2]
[401131280,1767954632139,-223.65078012,0.0001295,2]
[401131282,1767954632149,-515.00419007,0.00012972,2]
[401131284,1767954632160,-992.04,0.00013012,2]
[401131285,1767954632170,-619.65364363,0.00013043,2]
[401131287,1767954632182,-297.44635637,0.00013043,2]
[401131289,1767954632191,-448.42295485,0.0001305,2]
[401131290,1767954632200,-1200.0,0.00013211,2]
[401131291,1767954632210,-4652.64,0.00013212,2]
[401131292,1767954632219,-150.0,0.00013341,2]
[401131293,1767954632228,-500.0,0.00013342,2]
[401131294,1767954632238,-500.0,0.00013342,2]
[401131295,1767954632247,-500.0,0.00013342,2]
[401131296,1767954632257,-500.0,0.00013342,2]
[401131297,1767954632266,-500.0,0.00013342,2]
[401131298,1767954632278,-500.0,0.00013342,2]
[401131299,1767954632287,-500.0,0.00013342,2]
[401131300,1767954632297,-500.0,0.00013342,2]
[401131301,1767954632308,-500.0,0.00013342,2]
[401131302,1767954632318,-500.0,0.00013342,2]
[401131303,1767954632328,-476.96214695,0.00013342,2]
[401131304,1767954632339,-500.0,0.00013342,2]
[401131305,1767954632348,-500.0,0.00013342,2]
[401131306,1767954632357,-500.0,0.00013342,2]
[401131307,1767954632367,-500.0,0.00013342,2]
[401131308,1767954632376,-500.0,0.00013342,2]
[401131309,1767954632386,-3833.07694675,0.00013344,2]
[401131310,1767954632422,-8351.84305325,0.00013344,2]
[401131311,1767954632435,-500.0,0.00013397,2]
[401131312,1767954632445,-5131.48431991,0.000136,2]
[401131313,1767954632454,-150.0,0.00013648,2]
[401131314,1767954632463,-150.0,0.00013648,2]
[401131316,1767954632473,-311.95721074,0.00013671,2]
[401131318,1767954632484,-188.04278926,0.00013671,2]
[401131320,1767954632496,-359.73029242,0.00013685,2]
[401131323,1767954632513,-731.38855193,0.00013685,2]
[401131441,1767954638429,-250.65915844,0.00013047,2]
[401131442,1767954638444,-434.90587269,0.00013047,2]
[401131636,1767954640280,-344.64496887,0.00013047,2]
[401131638,1767954640290,-225.7501616,0.00013685,2]
[401131640,1767954640302,-1183.13099405,0.00013685,2]
[401131642,1767954640311,-1097.86629175,0.000137,2]
[401131644,1767954640322,-10.82621415,0.000137,2]
[401131646,1767954640330,-229.9303262,0.000137,2]
[401131648,1767954640339,-456.80073785,0.000137,2]
[401131650,1767954640349,-150.0,0.00013703,2]
[401131652,1767954640358,-150.0,0.00013703,2]
[401131654,1767954640368,-150.0,0.00013758,2]
[401131656,1767954640379,-150.0,0.00013758,2]
[401131658,1767954640398,-193.45154101,0.00013777,2]
[401131660,1767954640409,-214.11549117,0.00013784,2]
[401131662,1767954640419,-251.03749462,0.00013785,2]
[401131668,1767954640466,-248.96250538,0.00013785,2]
[401131670,1767954640475,-500.0,0.00013785,2]
[401131672,1767954640485,-500.0,0.00013785,2]
[401131675,1767954640496,-500.0,0.00013785,2]
[401131676,1767954640505,-270837.75370901,0.00013785,2]
[401131679,1767954640515,-160786.89028321,0.00013785,2]
[401131681,1767954640530,-5350.87,0.00013785,2]
[401131683,1767954640541,-653.76080498,0.00013785,2]
[401131685,1767954640552,-534.0,0.00013785,2]
[401131688,1767954640564,-834.16830647,0.00013785,2]
[401131690,1767954640581,-971.65257382,0.00013785,2]
[401131699,1767954640650,-422.28753396,0.00013785,2]
[401131701,1767954640661,-21041.45799257,0.00013785,2]
[401131703,1767954640673,-4348.12435315,0.00013785,2]
[401131879,1767954645277,-261.31116568,0.00013785,2]
[401131880,1767954645289,-501.73567189,0.00013785,2]
[401131882,1767954646127,-933.39947273,0.00013785,2]
[401131883,1767954646138,-1361.07983159,0.00013785,2]
[401131885,1767954646290,-973.68750524,0.00013785,2]
[401131886,1767954646480,-375.67493541,0.00013785,2]
[401131891,1767954852385,152.95446431,0.00013964,3]
[401131893,1767954926505,150.0,0.00013964,3]
[401131894,1767954926543,152.13305076,0.00013964,3]
[401131895,1767954927304,150.0,0.00013964,3]
[401131896,1767955029429,208.0,9.989e-05,2]
[401131897,1767955029720,208.0,9.989e-05,2]
[401131898,1767955030032,208.0,9.989e-05,2]
[401131899,1767955030362,208.0,9.989e-05,2]
[401131931,1767955595812,251.38953635,0.00013726,3]
[401131932,1767955596481,150.0,0.00013726,3]
[401131933,1767955596530,250.0,0.00013781,3]
[401131934,1767955665568,-166.66,0.00012329,2]
[401131935,1767955665595,-166.66,0.00012515,2]
[401131936,1767955665618,-187.53,0.00012667,2]
[401131937,1767955665641,-166.66,0.00012701,2]
[401131938,1767955665664,-997.82325531,0.00012811,2]
[401131939,1767955665691,-500.0,0.00012824,2]
[401131940,1767955665717,-386.32912744,0.00012824,2]
[401131941,1767955665742,-241.0,0.00012824,2]
[401131942,1767955665776,-1200.0,0.00012824,2]
[401131943,1767955665799,-150.0,0.00012824,2]
[401131944,1767955665822,-40837.33761725,0.00012825,2]
[401131945,1767955670597,999.0,0.00012681,3]
[401131946,1767955728733,-150.0,0.00012824,2]
[401131947,1767955728760,-18850.0,0.00012825,2]
[401131948,1767955762732,-6500.0,0.00012825,2]
[401131953,1767955831404,-2557.28,0.00012747,2]
[401131954,1767955831414,-80.60237455,0.00012824,2]
[401131955,1767955831425,-1119.39762545,0.00012824,2]
[401131956,1767955831435,-300.0,0.00012824,2]
[401131957,1767955831446,-3519.36644024,0.00012825,2]
[401131958,1767955831508,-3767.42126143,0.00012825,2]
[401131959,1767955831520,-2878.69273974,0.00012825,2]
[401131960,1767955831564,-324.27327818,0.00012825,2]
[401131961,1767955831576,-253.75974854,0.00012825,2]
[401131962,1767955831676,-98688.91891462,0.00012825,2]
[401131963,1767955831686,-29213.0,0.00012851,2]
[401131964,1767955831698,-166.66,0.00012888,2]
[401131965,1767955831708,-500.0,0.00012911,2]
[401131966,1767955831718,-245.1,0.00013011,2]
[401131967,1767955831728,-166.66,0.00013074,2]
[401131968,1767955831738,-150.0,0.00013087,2]
[401131969,1767955831747,-1989.218,0.00013236,2]
[401131970,1767955831757,-165.088,0.00013236,2]
[401131971,1767955831767,-166.66,0.0001326,2]
[401131972,1767955831778,-250.0,0.00013291,2]
[401131973,1767955831789,-565.22,0.00013348,2]
[401131974,1767955831802,-997.82325525,0.00013376,2]
[401131975,1767955831812,-3240.0,0.00013425,2]
[401131976,1767955831823,-500.0,0.00013452,2]
[401131977,1767955831833,-1000.0,0.00013685,2]
[401131978,1767955831843,-3235.65,0.00013699,2]
[401131979,1767955831852,-200.0,0.00013699,2]
[401131980,1767955831861,-210.94272354,0.000137,2]
[401131981,1767955831873,-7339.2607532,0.000137,2]
[401131982,1767955831883,-245.1,0.00013734,2]
[401131983,1767955831892,-200.0,0.00013739,2]
[401131984,1767955831903,-500.0,0.00013753,2]
[401131985,1767955831913,-500.0,0.00013767,2]
[401131986,1767955831923,-500.0,0.00013767,2]
[401131987,1767955831933,-500.0,0.00013767,2]
[401131988,1767955831944,-500.0,0.00013767,2]
[401131989,1767955831953,-4321.4958464,0.00013768,2]
[401131990,1767955831962,-627842.8926368,0.00013768,2]
[401131991,1767955831972,-4119.8635224,0.00013768,2]
[401131992,1767955831981,-136044.8820336,0.00013768,2]
[401131993,1767955831991,-151.0,0.00013768,2]
[401131994,1767955832000,-157.838488,0.00013768,2]
[401131995,1767955832010,-151.0,0.00013768,2]
[401131996,1767955832019,-151.0,0.00013768,2]
[401131997,1767955832028,-151.0,0.00013768,2]
[401131998,1767955832038,-161.775609,0.00013768,2]
[401131999,1767955832047,-151.0,0.00013768,2]
[401132000,1767955832056,-151.0,0.00013768,2]
[401132001,1767955832065,-169.303544,0.00013768,2]
[401132002,1767955832075,-151.0,0.00013768,2]
[401132003,1767955832084,-151.0,0.00013768,2]
[401132004,1767955832094,-151.0,0.00013768,2]
[401132005,1767955832103,-151.0,0.00013768,2]
[401132006,1767955832113,-221.603466,0.00013768,2]
[401132007,1767955832122,-221.603466,0.00013768,2]
[401132008,1767955832132,-221.603466,0.00013768,2]
[401132009,1767955832143,-221.603466,0.00013768,2]
[401132010,1767955832153,-221.603466,0.00013768,2]
[401132011,1767955832162,-221.603466,0.00013768,2]
[401132012,1767955832172,-221.603466,0.00013768,2]
[401132013,1767955832181,-221.603466,0.00013768,2]
[401132014,1767955832190,-167.181988,0.00013768,2]
[401132015,1767955832200,-167.181988,0.00013768,2]
[401132016,1767955832209,-167.181988,0.00013768,2]
[401132017,1767955832218,-167.181988,0.00013768,2]
[401132018,1767955832227,-167.181988,0.00013768,2]
[401132019,1767955832237,-167.181988,0.00013768,2]
[401132020,1767955832246,-167.181988,0.00013768,2]
[401132021,1767955832255,-167.181988,0.00013768,2]
[401132022,1767955832265,-207.404457,0.00013768,2]
[401132023,1767955832274,-207.404457,0.00013768,2]
[401132024,1767955832285,-207.404457,0.00013768,2]
[401132025,1767955832295,-207.404457,0.00013768,2]
[401132026,1767955832306,-207.404457,0.00013768,2]
[401132027,1767955832316,-207.404457,0.00013768,2]
[401132028,1767955832326,-207.404457,0.00013768,2]
[401132029,1767955832335,-207.404457,0.00013768,2]
[401132030,1767955832344,-151.0,0.00013768,2]
[401132031,1767955832354,-151.0,0.00013768,2]
[401132032,1767955832363,-151.0,0.00013768,2]
[401132033,1767955832372,-151.0,0.00013768,2]
[401132034,1767955832381,-339.629108,0.00013768,2]
[401132035,1767955832392,-339.629108,0.00013768,2]
[401132036,1767955832402,-339.629108,0.00013768,2]
[401132037,1767955832412,-339.629108,0.00013768,2]
[401132038,1767955832422,-339.629108,0.00013768,2]
[401132039,1767955832431,-339.629108,0.00013768,2]
[401132040,1767955832440,-339.629108,0.00013768,2]
[401132041,1767955832449,-339.629108,0.00013768,2]
[401132042,1767955832459,-153.913904,0.00013768,2]
[401132043,1767955832468,-346.02,0.00013768,2]
[401132044,1767955832478,-439.100774,0.00013771,2]
[401132045,1767955837657,-151.0,0.00013768,2]
[401132046,1767955837666,-171.785125,0.00013768,2]
[401132047,1767955837676,-414.702853,0.00013768,2]
[401132048,1767955837685,-414.702853,0.00013768,2]
[401132049,1767955837694,-414.702853,0.00013768,2]
[401132050,1767955837703,-248.61199123,0.00013768,2]
[401132051,1767955837714,-166.09086177,0.00013768,2]
[401132052,1767955837722,-414.702853,0.00013768,2]
[401132053,1767955837731,-414.702853,0.00013768,2]
[401132054,1767955837740,-60.899226,0.00013771,2]
[401132055,1767955837751,-151.0,0.00013785,2]
[401132056,1767955837760,-500.0,0.00013785,2]
[401132057,1767955837769,-500.0,0.00013785,2]
[401132059,1767955837778,-500.0,0.00013785,2]
[401132061,1767955837787,-500.0,0.00013785,2]
[401132063,1767955837799,-500.0,0.00013785,2]
[401132065,1767955837807,-4954.62788173,0.0001383,2]
[401132067,1767955837818,-1771.11495433,0.0001383,2]
[401132073,1767955839668,-414.702853,0.00013768,2]
[401132074,1767955839678,-414.702853,0.00013768,2]
[401132075,1767955839687,-426.97432716,0.0001383,2]
[401132076,1767955839709,-547.8124026,0.0001383,2]
[401132077,1767955839727,-17085.67333924,0.0001383,2]
[401132078,1767955839759,-1737.64574513,0.0001383,2]
[401132079,1767955839768,-414.702853,0.0001383,2]
[401132080,1767955839777,-414.702853,0.0001383,2]
[401132081,1767955839786,-414.702853,0.0001383,2]
[401132082,1767955839798,-373.24015099,0.0001383,2]
[401132083,1767955839809,-41.46270201,0.0001383,2]
[401132084,1767955839819,-255.0,0.00013927,2]
[401132085,1767955839828,-243.17304657,0.00013942,2]
[401132086,1767955839843,-398.52112028,0.00013942,2]
[401132087,1767955839854,-356.1290884,0.00013942,2]
[401132088,1767955839866,-149.47634089,0.00014042,2]
[401132096,1767955843526,-196.54365911,0.00014042,2]
[401132097,1767955843536,-113.10134089,0.0001405,2]
[401132098,1767955843579,-338.34236733,0.0001405,2]
[401132099,1767955843590,-31.34500178,0.0001405,2]
[401132100,1767955843599,-482.78871,0.0001405,2]
[401132101,1767955843609,-482.7887,0.0001405,2]
[401132102,1767955843618,-482.7887,0.0001406,2]
[401132103,1767955843627,-482.78871,0.0001406,2]
[401132104,1767955843638,-482.78871,0.0001406,2]
[401132105,1767955843647,-482.78871,0.0001406,2]
[401132106,1767955843656,-482.78871,0.0001406,2]
[401132107,1767955843665,-482.7887,0.0001406,2]
[401132108,1767955843674,-482.7887,0.0001406,2]
[401132109,1767955843683,-420.0,0.00014066,2]
[401132110,1767955843693,-575.89651861,0.00014085,2]
[401132111,1767955843702,-165.60214925,0.00014085,2]
[401132112,1767955843711,-195.0,0.00014092,2]
[401132113,1767955843721,-1680.0,0.00014106,2]
[401132114,1767955843730,-195.0,0.00014106,2]
[401132115,1767955843740,-250.0,0.00014107,2]
[401132116,1767955843749,-1862.70122449,0.00014107,2]
[401132117,1767955843758,-300.0,0.00014107,2]
[401132118,1767955843767,-418.99259172,0.000142,2]
[401132119,1767955843776,-166.66,0.00014285,2]
[401132120,1767955843785,-346.02,0.00014316,2]
[401132121,1767955843794,-500.0,0.00014348,2]
[401132122,1767955843808,-3235.65,0.00014384,2]
[401132123,1767955843817,-245.1,0.00014456,2]
[401132124,1767955843826,-556.24,0.0001449,2]
[401132125,1767955843835,-1013.7,0.0001449,2]
[401132126,1767955843845,-570.69,0.0001449,2]
[401132127,1767955843855,-556.24,0.0001449,2]
[401132128,1767955843864,-556.24,0.0001449,2]
[401132129,1767955843873,-556.24,0.0001449,2]
[401132130,1767955843882,-556.24,0.0001449,2]
[401132131,1767955843891,-556.24,0.0001449,2]
[401132132,1767955843900,-997.82325525,0.00014507,2]
[401132133,1767955843909,-182.01,0.00014512,2]
[401132134,1767955843919,-1066.30640652,0.00014516,5]
[401132135,1767955843928,-346.02,0.0001459,2]
[401132136,1767955843937,-1000.0,0.00014594,2]
[401132137,1767955843946,-207.404457,0.00014608,2]
[401132138,1767955843955,-207.404457,0.00014608,2]
[401132139,1767955843964,-207.404457,0.00014608,2]
[401132140,1767955843973,-207.404457,0.00014608,2]
[401132141,1767955843983,-151.0,0.00014608,2]
[401132142,1767955843992,-151.0,0.00014608,2]
[401132143,1767955844002,-339.629108,0.00014608,2]
[401132144,1767955844011,-339.629108,0.00014608,2]
[401132145,1767955844020,-339.629108,0.00014608,2]
[401132146,1767955844030,-339.629108,0.00014608,2]
[401132147,1767955844039,-992.04,0.00014639,2]
[401132148,1767955844048,-167.181988,0.00014639,2]
[401132149,1767955844058,-167.181988,0.00014639,2]
[401132150,1767955844067,-167.181988,0.00014639,2]
[401132151,1767955844076,-167.181988,0.00014639,2]
[401132152,1767955844085,-500.0,0.00014685,2]
[401132153,1767955844094,-166.66,0.00014741,2]
[401132154,1767955844104,-346.02579938,0.00014864,2]
[401132155,1767955844114,-322.6107,0.000149,2]
[401132156,1767955844123,-620.0,0.000149,2]
[401132157,1767955844132,-578.20924308,0.000149,2]
[401132158,1767955844143,-553.64373807,0.000149,2]
[401132159,1767955844154,-1962.37219787,0.00015,2]
[401132160,1767955844164,-10693.46658578,0.00015,2]
[401132161,1767955844173,-151.0,0.00015,2]
[401132162,1767955844182,-151.0,0.00015,2]
[401132163,1767955844192,-151.0,0.00015,2]
[401132164,1767955844201,-151.0,0.00015,2]
[401132165,1767955844211,-151.0,0.00015,2]
[401132167,1767955844220,-154.280099,0.00015,2]
[401132168,1767955844229,-221.603466,0.00015,2]
[401132169,1767955844238,-221.603466,0.00015,2]
[401132170,1767955844247,-221.603466,0.00015,2]
[401132171,1767955844257,-221.603466,0.00015,2]
[401132172,1767955844266,-414.702853,0.00015,2]
[401132173,1767955844276,-414.702853,0.00015,2]
[401132174,1767955844286,-414.702853,0.00015,2]
[401132175,1767955844296,-414.702853,0.00015,2]
[401132176,1767955844305,-151.0,0.00015068,2]
[401132177,1767955844314,-431.86,0.00015068,2]
[401132178,1767955844323,-3235.65,0.00015068,2]
[401132179,1767955844332,-156.755802,0.00015068,2]
[401132180,1767955844341,-156.755802,0.00015068,2]
[401132181,1767955844350,-156.755802,0.00015068,2]
[401132182,1767955844360,-997.82325525,0.00015073,2]
[401132183,1767955844369,-8233.0,0.00015103,2]
[401132184,1767955844378,-245.1,0.00015179,2]
[401132185,1767955844387,-7339.2607532,0.00015192,2]
[401132186,1767955844396,-166.66,0.00015197,2]
[401132187,1767955844405,-167.181988,0.00015267,2]
[401132188,1767955844415,-167.181988,0.00015267,2]
[401132189,1767955844424,-167.181988,0.00015267,2]
[401132190,1767955844433,-167.181988,0.00015267,2]
[401132191,1767955844442,-207.404457,0.00015267,2]
[401132192,1767955844451,-207.404457,0.00015267,2]
[401132193,1767955844460,-207.404457,0.00015267,2]
[401132194,1767955844469,-207.404457,0.00015267,2]
[401132195,1767955844478,-151.0,0.00015267,2]
[401132196,1767955844487,-151.0,0.00015267,2]
[401132197,1767955844499,-339.629108,0.00015267,2]
[401132198,1767955844508,-339.629108,0.00015267,2]
[401132199,1767955844517,-339.629108,0.00015267,2]
[401132200,1767955844526,-339.629108,0.00015267,2]
[401132201,1767955844535,-4321.4958464,0.00015268,2]
[401132202,1767955844544,-151.0,0.00015312,2]
[401132203,1767955844553,-156.755802,0.00015312,2]
[401132204,1767955844562,-156.755802,0.00015312,2]
[401132205,1767955844571,-221.603466,0.00015312,2]
[401132206,1767955844580,-221.603466,0.00015312,2]
[401132207,1767955844589,-221.603466,0.00015312,2]
[401132208,1767955844598,-221.603466,0.00015312,2]
[401132209,1767955844607,-352.5,0.00015312,2]
[401132210,1767955844617,-1000.0,0.000154,2]
[401132211,1767955844626,-587.0,0.00015428,2]
[401132212,1767955844635,-574.12855637,0.00015448,2]
[401132213,1767955844645,-1000.0,0.000155,2]
[401132214,1767955844654,-2351.0,0.00015517,2]
[401132215,1767955844663,-414.702853,0.00015517,2]
[401132216,1767955844671,-414.702853,0.00015517,2]
[401132217,1767955844680,-414.702853,0.00015517,2]
[401132218,1767955844689,-414.702847,0.00015517,2]
[401132219,1767955844698,-997.82325525,0.00015638,2]
[401132220,1767955844707,-1103.80559489,0.0001564,2]
[401132221,1767955844716,-166.66,0.00015654,2]
[401132222,1767955844725,-151.0,0.00015753,2]
[401132223,1767955844734,-187.879539,0.00015753,2]
[401132224,1767955844743,-3235.65,0.00015753,2]
[401132225,1767955844753,-276.0,0.00015781,2]
[401132226,1767955844762,-151.0,0.00015792,2]
[401132227,1767955844771,-151.0,0.0001582,2]
[401132228,1767955844779,-245.1,0.00015902,2]
[401132229,1767955844788,-1000.0,0.00015918,2]
[401132230,1767955844800,-2257.0,0.00015971,2]
[401132231,1767955844810,-595.37131296,0.00015996,2]
[401132232,1767955844820,-12025.73335496,0.00016,4]
[401132233,1767955844830,-151.0,0.00016,2]
[401132234,1767955844840,-1000.0,0.00016,2]
[401132235,1767955844849,-207.404457,0.00016,2]
[401132236,1767955844858,-207.404457,0.00016,2]
[401132237,1767955844868,-207.404457,0.00016,2]
[401132238,1767955844877,-207.404449,0.00016,2]
[401132239,1767955844886,-151.0,0.00016,2]
[401132240,1767955844895,-151.0,0.00016,2]